bitfinex-derivatives/quotes_BTCF0:USTF0_20250830
["timestamp","ask_amount","ask_price","bid_price","bid_amount"]
[1756536760658,1.59369855,108310.0,108300.0,0.41323599]
[1756536763560,1.59369855,108310.0,108300.0,0.05775]
[1756536763762,1.59357395,108310.0,108300.0,0.41323599]
[1756536765763,1.59357395,108310.0,108300.0,0.05775]
[1756536765966,1.59357395,108310.0,108300.0,0.41323599]
[1756536766263,1.59357395,108310.0,108300.0,0.05775]
[1756536766462,1.59357395,108310.0,108300.0,0.41323599]
[1756536767564,1.59357395,108310.0,108300.0,0.05775]
[1756536767766,1.59357395,108310.0,108300.0,0.41323599]
[1756536769471,1.59357395,108310.0,108300.0,0.05775]
[1756536769661,1.59357395,108310.0,108300.0,0.41323599]
[1756536771072,1.59357395,108310.0,108300.0,0.05775]
[1756536771266,1.59357395,108310.0,108300.0,0.41323599]
[1756536771871,1.23808796,108310.0,108300.0,0.41323599]
[1756536772070,1.59357395,108310.0,108300.0,0.41323599]
[1756536773670,1.59357395,108310.0,108300.0,0.05775]
[1756536773879,1.59357395,108310.0,108300.0,0.41323599]
[1756536774174,1.59301395,108310.0,108300.0,0.41323599]
[1756536774776,1.56724599,108310.0,108300.0,0.41323599]
[1756536775179,1.59301527,108310.0,108300.0,0.41323599]
[1756536776379,1.59301527,108310.0,108300.0,0.05775]
[1756536776583,1.59301527,108310.0,108300.0,0.41323599]
[1756536780282,1.59301527,108310.0,108300.0,0.05775]
[1756536780483,1.59301527,108310.0,108300.0,0.41323599]
[1756536783176,1.59301527,108310.0,108300.0,0.05775]
[1756536783384,1.59301527,108310.0,108300.0,0.41323599]
[1756536783780,1.59301527,108310.0,108300.0,0.05775]
[1756536784175,1.59301527,108310.0,108300.0,0.41323599]
[1756536784384,1.59301527,108310.0,108300.0,0.05775]
[1756536784881,1.23752928,108310.0,108300.0,0.05775]
[1756536785081,1.59301527,108310.0,108300.0,0.41323599]
[1756536785980,0.38656928,108310.0,108300.0,0.41323599]
[1756536786184,1.59269527,108310.0,108300.0,0.41323599]
[1756536789490,0.74205527,108310.0,108300.0,0.41323599]
[1756536789691,1.59265527,108310.0,108300.0,0.41323599]
[1756536789986,1.59261527,108310.0,108300.0,0.41323599]
[1756536793088,1.23712928,108310.0,108300.0,0.41323599]
[1756536793286,1.23708928,108310.0,108300.0,0.41323599]
[1756536793488,1.59257527,108310.0,108300.0,0.41323599]
[1756536794787,1.59257527,108310.0,108300.0,0.05775]
[1756536794987,1.59257527,108310.0,108300.0,0.41323599]
[1756536800702,0.38656928,108310.0,108300.0,0.41323599]
[1756536800901,0.02576928,108310.0,108300.0,1.37952198]
[1756536801103,0.02576928,108310.0,108300.0,1.73500797]
[1756536801509,0.02576928,108310.0,108300.0,1.37952198]
[1756536804909,0.02576928,108310.0,108300.0,1.3978948]
[1756536805810,0.38125527,108310.0,108300.0,1.3978948]
[1756536806413,0.02576928,108310.0,108300.0,1.3978948]
[1756536811516,0.02576928,108310.0,108300.0,0.68692282]
[1756536811814,0.02576928,108310.0,108300.0,1.3978948]
[1756536812212,0.02576928,108310.0,108300.0,1.1478948]
[1756536812910,0.02576928,108310.0,108300.0,0.43692282]
[1756536813111,0.02576928,108310.0,108300.0,1.1478948]
[1756536813314,0.02576928,108310.0,108300.0,1.12952198]
[1756536814516,0.02576928,108310.0,108300.0,1.14851005]
[1756536817921,0.02576928,108310.0,108300.0,2.00079005]
[1756536820824,0.02576928,108310.0,108300.0,1.28981807]
[1756536821025,0.02576928,108310.0,108300.0,2.00079005]
[1756536823920,0.02576928,108310.0,108300.0,1.96690005]
[1756536823921,0.02576831,108310.0,108300.0,1.96690005]
[1756536825024,0.02576831,108310.0,108300.0,2.00123005]
[1756536828025,0.02576831,108310.0,108300.0,1.29025807]
[1756536828220,0.02576831,108310.0,108300.0,2.00123005]
[1756536828721,0.02576831,108310.0,108300.0,1.28969807]
[1756536828924,0.02576831,108310.0,108300.0,2.00067005]
[1756536829625,0.02576831,108310.0,108300.0,1.14895005]
[1756536829822,0.3812543,108310.0,108300.0,2.00087005]
[1756536830123,0.02576831,108310.0,108300.0,2.00087005]
[1756536830526,0.02576831,108310.0,108300.0,2.00548005]
[1756536833731,0.02576831,108310.0,108300.0,1.64468005]
[1756536833927,0.02576831,108310.0,108300.0,2.00548005]
[1756536834825,0.18721605,108320.0,108300.0,2.00548005]
[1756536835130,0.43095311,108320.0,108310.0,0.41376599]
[1756536835930,0.43195311,108320.0,108310.0,0.41376599]
[1756536836129,0.43195311,108320.0,108310.0,0.77456599]
[1756536836330,0.43195311,108320.0,108310.0,0.41376599]
[1756536836530,0.43295311,108320.0,108310.0,0.77456599]
[1756536836729,0.38329756,108320.0,108310.0,0.77456599]
[1756536836932,0.38329756,108320.0,108310.0,0.41376599]
[1756536837632,0.38429756,108320.0,108310.0,0.41376599]
[1756536837827,0.38429756,108320.0,108310.0,0.77456599]
[1756536840836,0.02881157,108320.0,108310.0,0.77456599]
[1756536841134,0.02881157,108320.0,108310.0,0.41908]
[1756536841135,0.38429756,108320.0,108310.0,0.41908]
[1756536841335,0.38429756,108320.0,108310.0,0.77456599]
[1756536841526,0.02881157,108320.0,108310.0,0.77456599]
[1756536841727,0.02881157,108320.0,108310.0,0.41908]
[1756536841926,0.38429756,108320.0,108310.0,0.77456599]
[1756536842840,0.02881157,108320.0,108310.0,0.77456599]
[1756536845040,0.38429756,108320.0,108310.0,0.77456599]
[1756536848546,0.02881157,108320.0,108310.0,0.77456599]
[1756536848745,0.38429756,108320.0,108310.0,0.77456599]
[1756536854453,0.38429756,108320.0,108310.0,0.77917599]
[1756536856456,0.38429756,108320.0,108310.0,0.42369]
[1756536856655,0.38429756,108320.0,108310.0,0.77917599]
[1756536857258,0.38429756,108320.0,108310.0,0.42369]
[1756536857455,0.38429756,108320.0,108310.0,0.77917599]
[1756536859456,0.02881157,108320.0,108310.0,0.77917599]
[1756536859952,0.02881157,108320.0,108310.0,1.74546198]
[1756536860159,0.91176555,108340.0,108330.0,0.02449]
[1756536860352,0.91176555,108340.0,108330.0,0.41389599]
[1756536860557,0.91176555,108340.0,108330.0,0.05841]
[1756536860558,1.26725154,108340.0,108330.0,0.05841]
[1756536860754,1.26725154,108340.0,108330.0,0.41389599]
[1756536860955,1.27434154,108340.0,108330.0,0.41389599]
[1756536861762,0.06809555,108340.0,108330.0,0.41389599]
[1756536861960,0.86467,108340.0,108330.0,0.41389599]
[1756536862356,0.87176,108340.0,108330.0,0.41389599]
[1756536862757,0.87476,108340.0,108330.0,0.41389599]
[1756536865857,0.87476,108340.0,108330.0,0.05841]
[1756536866063,1.33024599,108340.0,108330.0,0.41389599]
[1756536867071,1.15518022,108340.0,108330.0,0.41389599]
[1756536867962,1.15518022,108340.0,108330.0,0.41850599]
[1756536868366,0.79969423,108340.0,108330.0,0.41850599]
[1756536870171,0.69969423,108340.0,108330.0,0.41850599]
[1756536870970,0.69969423,108340.0,108330.0,0.06302]
[1756536871170,0.69969423,108340.0,108330.0,0.41850599]
[1756536871369,1.05518022,108340.0,108330.0,0.41850599]
[1756536871568,0.69969423,108340.0,108330.0,0.41850599]
[1756536871769,1.05518022,108340.0,108330.0,0.41850599]
[1756536871969,1.21793599,108340.0,108330.0,0.41850599]
[1756536872172,0.39291227,108340.0,108330.0,0.41850599]
[1756536872469,1.24327227,108340.0,108330.0,0.41850599]
[1756536872671,0.88778628,108340.0,108330.0,0.41850599]
[1756536872869,1.24327227,108340.0,108330.0,0.41850599]
[1756536873070,0.69824485,108340.0,108330.0,0.41850599]
[1756536873368,1.05373084,108340.0,108330.0,0.41850599]
[1756536873773,0.69824485,108340.0,108330.0,0.41850599]
[1756536873973,1.05373084,108340.0,108330.0,0.41850599]
[1756536874470,1.15373084,108340.0,108330.0,0.41850599]
[1756536875873,1.15373084,108340.0,108330.0,0.06302]
[1756536876069,1.15373084,108340.0,108330.0,0.0291]
[1756536876070,1.50921683,108340.0,108330.0,0.0291]
[1756536876273,1.50921683,108340.0,108330.0,0.42122599]
[1756536877677,1.15373084,108340.0,108330.0,0.42122599]
[1756536878575,1.15373084,108340.0,108330.0,0.06574]
[1756536878870,1.15373084,108340.0,108330.0,0.42122599]
[1756536882075,0.45548599,108340.0,108330.0,0.42122599]
[1756536882277,1.30580599,108340.0,108330.0,0.42122599]
[1756536883471,0.35548599,108340.0,108330.0,0.42122599]
[1756536883677,1.20580599,108340.0,108330.0,0.42122599]
[1756536883977,1.20580599,108340.0,108330.0,0.06574]
[1756536884173,1.20580599,108340.0,108330.0,0.42122599]
[1756536887276,1.20576599,108340.0,108330.0,0.42122599]
[1756536887975,0.35548599,108340.0,108330.0,0.42122599]
[1756536888281,1.20576599,108340.0,108330.0,0.42122599]
[1756536889076,0.85028,108340.0,108330.0,0.42122599]
[1756536889282,1.20576599,108340.0,108330.0,0.42122599]
[1756536889888,0.44264506,108350.0,108330.0,0.42122599]
[1756536890183,0.56791938,108350.0,108340.0,0.37992599]
[1756536890378,1.77368537,108350.0,108340.0,0.37992599]
[1756536890780,1.72402982,108350.0,108340.0,0.37992599]
[1756536891783,1.72402982,108350.0,108340.0,0.38453599]
[1756536892084,1.72502982,108350.0,108340.0,0.38453599]
[1756536892571,1.72802982,108350.0,108340.0,0.38453599]
[1756536892776,1.72902982,108350.0,108340.0,0.38453599]
[1756536893880,1.72902982,108350.0,108340.0,0.02905]
[1756536894179,1.72902982,108350.0,108340.0,0.38453599]
[1756536894384,1.72902982,108350.0,108340.0,0.02905]
[1756536894582,1.77863204,108350.0,108340.0,0.00461]
[1756536895881,1.77863204,108350.0,108340.0,0.36009599]
[1756536897787,1.77863204,108350.0,108340.0,0.38453599]
[1756536900094,1.77863204,108350.0,108340.0,0.02905]
[1756536900386,1.77863204,108350.0,108340.0,0.38453599]
[1756536900895,1.77863204,108350.0,108340.0,0.02905]
[1756536901095,1.77863204,108350.0,108340.0,0.38453599]
[1756536904192,1.42314605,108350.0,108340.0,0.38453599]
[1756536904394,1.77863204,108350.0,108340.0,0.42154599]
[1756536904690,0.92835204,108350.0,108340.0,0.42154599]
[1756536904989,1.77855204,108350.0,108340.0,0.42154599]
[1756536905593,0.92835204,108350.0,108340.0,0.42154599]
[1756536905789,1.77855204,108350.0,108340.0,0.42154599]
[1756536906086,0.92835204,108350.0,108340.0,0.42154599]
[1756536906292,1.77855204,108350.0,108340.0,0.42154599]
[1756536907092,0.92835204,108350.0,108340.0,0.42154599]
[1756536907390,1.37342383,108350.0,108340.0,0.42154599]
[1756536907587,1.42302495,108350.0,108340.0,0.42154599]
[1756536907785,1.77851094,108350.0,108340.0,0.42154599]
[1756536908293,0.92835094,108350.0,108340.0,0.42154599]
[1756536908490,1.77851094,108350.0,108340.0,0.42154599]
[1756536910494,1.77851094,108350.0,108340.0,0.06606]
[1756536910690,1.77851094,108350.0,108340.0,0.42154599]
[1756536911192,1.42302495,108350.0,108340.0,0.42154599]
[1756536911396,1.77851094,108350.0,108340.0,0.42154599]
[1756536913393,1.77851094,108350.0,108340.0,0.06606]
[1756536913699,1.77851094,108350.0,108340.0,0.42154599]
[1756536916908,1.77851094,108350.0,108340.0,0.41693599]
[1756536917893,1.77851094,108350.0,108340.0,0.42154599]
[1756536918199,1.72890982,108350.0,108340.0,0.42154599]
[1756536921100,1.37342383,108350.0,108340.0,0.42154599]
[1756536921399,1.72890982,108350.0,108340.0,0.42154599]
[1756536925502,1.37342383,108350.0,108340.0,0.42154599]
[1756536925999,0.42326383,108350.0,108340.0,0.79555896]
[1756536926299,0.06246383,108350.0,108340.0,1.40635896]
[1756536926494,0.91242383,108350.0,108340.0,1.40635896]
[1756536927503,0.90942383,108350.0,108340.0,1.40635896]
[1756536927705,0.91042383,108350.0,108340.0,1.40635896]
[1756536928608,0.90842383,108350.0,108340.0,1.40635896]
[1756536928911,0.90942383,108350.0,108340.0,1.40635896]
[1756536931206,0.05946383,108350.0,108340.0,1.40635896]
[1756536931391,0.90934383,108350.0,108340.0,1.40635896]
[1756536932105,0.05946383,108350.0,108340.0,1.40635896]
[1756536934111,0.05846383,108350.0,108340.0,1.40635896]
[1756536934606,0.05846383,108350.0,108340.0,0.69538698]
[1756536934811,0.05846383,108350.0,108340.0,1.40635896]
[1756536935109,0.05746383,108350.0,108340.0,1.40635896]
[1756536940511,0.05746383,108350.0,108340.0,0.69538698]
[1756536940913,0.05746383,108350.0,108340.0,1.40635896]
[1756536942313,0.05746383,108350.0,108340.0,1.54506698]
[1756536942519,0.05746383,108350.0,108340.0,2.25603896]
[1756536945320,0.05746383,108350.0,108340.0,1.54506698]
[1756536945510,0.05746383,108350.0,108340.0,2.25603896]
[1756536949812,0.03218951,108350.0,108340.0,2.25603896]
[1756536950119,0.02489512,108350.0,108340.0,2.25603896]
[1756536951814,0.04917195,108350.0,108340.0,2.25603896]
[1756536954619,0.04917195,108350.0,108340.0,0.69538698]
[1756536954824,0.04917195,108350.0,108340.0,1.40635896]
[1756536955011,0.04917195,108350.0,108340.0,2.25587896]
[1756536955819,0.04917195,108350.0,108340.0,1.40635896]
[1756536956019,0.04917195,108350.0,108340.0,2.25587896]
[1756536959219,0.04917195,108350.0,108340.0,2.00587896]
[1756536960318,0.04917195,108350.0,108340.0,1.15635896]
[1756536960618,0.65465794,108350.0,108340.0,1.15635896]
[1756536960816,0.65465794,108350.0,108340.0,2.00579896]
[1756536961723,0.65465794,108350.0,108340.0,1.15635896]
[1756536962622,0.29917195,108350.0,108340.0,1.15635896]
[1756536962926,0.65465794,108350.0,108340.0,1.15635896]
[1756536963115,0.29917195,108350.0,108340.0,1.15635896]
[1756536969019,0.29917195,108350.0,108340.0,0.44538698]
[1756536969220,0.29917195,108350.0,108340.0,1.15635896]
[1756536970622,0.29917195,108350.0,108340.0,0.79555896]
[1756536970827,0.29917195,108350.0,108340.0,1.15635896]
[1756536972633,0.65465794,108350.0,108340.0,1.15635896]
[1756536975125,1.11014393,108350.0,108340.0,0.06606]
[1756536975324,1.52054097,108350.0,108330.0,0.38217891]
[1756536975525,1.21874198,108340.0,108330.0,0.02405]
[1756536975725,1.29323414,108340.0,108330.0,0.02405]
[1756536975932,2.14247414,108340.0,108330.0,0.02405]
[1756536976127,0.03761,108330.0,108320.0,1.17258863]
[1756536976321,0.41338111,108330.0,108320.0,1.17258863]
[1756536976526,0.41338111,108330.0,108320.0,1.20893863]
[1756536976722,0.43785111,108330.0,108320.0,0.92904606]
[1756536976923,0.43785111,108330.0,108320.0,1.28453205]
[1756536976924,0.51296208,108330.0,108320.0,1.28453205]
[1756536977126,0.61296208,108330.0,108320.0,1.28449205]
[1756536977326,0.61296208,108330.0,108320.0,1.23688205]
[1756536977624,0.61296208,108330.0,108320.0,1.25544213]
[1756536978131,0.61296208,108330.0,108320.0,0.40620213]
[1756536978324,0.61296208,108330.0,108320.0,1.25540213]
[1756536978524,0.61296208,108330.0,108320.0,1.25640213]
[1756536979027,0.97376208,108330.0,108320.0,0.05171614]
[1756536979326,1.57924807,108330.0,108320.0,0.04527008]
[1756536979530,1.57924807,108330.0,108320.0,0.02056008]
[1756536980128,1.57924807,108330.0,108320.0,0.04527008]
[1756536981131,1.57924807,108330.0,108320.0,0.04427008]
[1756536981427,1.58024807,108330.0,108320.0,0.04427008]
[1756536981829,1.58024807,108330.0,108320.0,0.01856008]
[1756536982027,1.63084511,108330.0,108320.0,0.01856008]
[1756536982233,1.58124807,108330.0,108320.0,0.01856008]
[1756536985234,0.87027609,108330.0,108320.0,0.01856008]
[1756536985535,1.58124807,108330.0,108320.0,0.01856008]
[1756536986735,1.58124807,108330.0,108310.0,0.03635]
[1756536986936,2.08309198,108320.0,108310.0,0.06106]
[1756536987140,2.1079871,108320.0,108310.0,0.06106]
[1756536987329,2.1079871,108320.0,108310.0,0.41654599]
[1756536988737,1.2587471,108320.0,108310.0,0.41654599]
[1756536988937,2.1079471,108320.0,108310.0,0.41654599]
[1756536989538,1.2587471,108320.0,108310.0,0.41654599]
[1756536989740,2.1079471,108320.0,108310.0,0.06106]
[1756536989936,2.1079471,108320.0,108310.0,0.41654599]
[1756536992035,1.2587471,108320.0,108310.0,0.41654599]
[1756536992236,2.1079071,108320.0,108310.0,0.41654599]
[1756536992432,1.39162111,108320.0,108310.0,0.77734599]
[1756536993829,1.7471071,108320.0,108310.0,0.77734599]
[1756536996241,1.7471071,108320.0,108310.0,0.42186]
[1756536996442,1.7471071,108320.0,108310.0,0.77734599]
[1756536996641,1.7471071,108320.0,108310.0,0.42186]
[1756536996842,1.7471071,108320.0,108310.0,0.77734599]
[1756536998446,1.7471071,108320.0,108310.0,0.42186]
[1756536998641,1.7471071,108320.0,108310.0,0.77734599]
[1756537000042,1.7471071,108320.0,108310.0,0.42186]
[1756537000244,1.7471071,108320.0,108310.0,0.77734599]
[1756537001547,1.7471071,108320.0,108310.0,0.42186]
[1756537001748,1.7471071,108320.0,108310.0,0.77734599]
[1756537004548,1.72221198,108320.0,108310.0,0.77734599]
[1756537006148,1.79733503,108320.0,108310.0,0.06106]
[1756537006345,1.79733503,108320.0,108310.0,0.02471]
[1756537011954,1.79701503,108320.0,108310.0,0.02471]
[1756537012644,1.79695503,108320.0,108310.0,0.02515]
[1756537013153,0.06147,108310.0,108300.0,0.77739599]
[1756537013352,1.29123295,108310.0,108300.0,0.77739599]
[1756537014265,1.29123295,108310.0,108300.0,0.77839599]
[1756537016468,0.44243295,108310.0,108300.0,0.77839599]
[1756537016668,1.29115295,108310.0,108300.0,0.77839599]
[1756537017965,0.44243295,108310.0,108300.0,0.77839599]
[1756537018364,0.08694696,108310.0,108300.0,1.13388198]
[1756537018564,0.04939696,108310.0,108300.0,1.13388198]
[1756537019370,0.08694696,108310.0,108300.0,1.13388198]
[1756537019864,0.08694696,108310.0,108300.0,0.42291]
[1756537020065,0.08694696,108310.0,108300.0,1.13388198]
[1756537023768,0.44243295,108310.0,108300.0,1.98244198]
[1756537023974,0.08694696,108310.0,108300.0,1.98244198]
[1756537025274,0.44243295,108310.0,108300.0,1.98244198]
[1756537025870,0.44243295,108310.0,108300.0,1.98240198]
[1756537026076,0.44243295,108310.0,108300.0,0.77839599]
[1756537028380,0.08694696,108310.0,108300.0,0.77839599]
[1756537028678,0.44243295,108310.0,108300.0,0.77839599]
[1756537028880,0.44243295,108310.0,108300.0,0.42291]
[1756537029180,0.44243295,108310.0,108300.0,0.77839599]
[1756537029673,0.44243295,108310.0,108300.0,0.42291]
[1756537029979,0.44243295,108310.0,108300.0,0.77839599]
[1756537031175,0.44243295,108310.0,108300.0,0.42291]
[1756537042985,0.44243295,108310.0,108300.0,0.77839599]
[1756537043585,0.04939696,108310.0,108300.0,0.77839599]
[1756537043783,0.02547696,108310.0,108300.0,1.38388198]
[1756537043987,0.37981599,108320.0,108310.0,0.05867]
[1756537044186,0.44064678,108320.0,108310.0,0.77495599]
[1756537044387,0.79613277,108320.0,108310.0,0.41947]
[1756537045988,0.89613277,108320.0,108310.0,0.41947]
[1756537049185,0.89612909,108320.0,108310.0,0.41947]
[1756537054492,0.89612909,108320.0,108310.0,0.77495599]
[1756537057890,0.18515711,108320.0,108310.0,0.77495599]
[1756537058196,0.02548711,108320.0,108310.0,1.04379666]
[1756537061792,0.02548711,108320.0,108310.0,1.89151666]
[1756537061987,0.02548711,108320.0,108310.0,1.89147666]
[1756537062895,0.02548711,108320.0,108310.0,1.89143666]
[1756537063698,0.02548711,108320.0,108310.0,2.25223666]
[1756537064998,0.02548711,108320.0,108310.0,2.25219666]
[1756537065500,0.02548711,108320.0,108310.0,2.60768265]
[1756537066198,0.02548711,108320.0,108310.0,1.89671067]
[1756537066398,0.02548711,108320.0,108310.0,2.60768265]
[1756537066599,0.02548711,108320.0,108310.0,1.88608265]
[1756537066794,0.02548711,108320.0,108310.0,2.60768265]
[1756537069099,0.02548711,108320.0,108310.0,1.04911067]
[1756537069301,0.02548711,108320.0,108310.0,2.60756265]
[1756537070204,0.07511097,108330.0,108320.0,0.04862]
[1756537070395,0.02316,108340.0,108330.0,0.04862]
[1756537070591,0.02316,108340.0,108330.0,1.96787198]
[1756537070995,0.05817,108340.0,108330.0,1.96787198]
[1756537071198,0.05817,108340.0,108330.0,1.61238599]
[1756537071402,0.05817,108340.0,108330.0,1.61241302]
[1756537071792,0.05817,108340.0,108330.0,1.61237302]
[1756537072898,0.05817,108340.0,108330.0,1.25686]
[1756537073099,0.05817,108340.0,108330.0,0.76493302]
[1756537073303,0.05817,108340.0,108330.0,1.61233302]
[1756537073705,0.05817,108340.0,108330.0,0.76493302]
[1756537074005,0.05817,108340.0,108330.0,1.61233302]
[1756537075600,0.02316,108340.0,108330.0,1.61233302]
[1756537076705,0.08244683,108350.0,108340.0,0.04862]
[1756537077004,0.08244683,108350.0,108340.0,0.76493302]
[1756537077209,0.08244683,108350.0,108340.0,1.61225302]
[1756537078007,0.08344683,108350.0,108340.0,1.61225302]
[1756537078707,0.08444683,108350.0,108340.0,1.61225302]
[1756537081705,0.08344683,108350.0,108340.0,1.61225302]
[1756537082106,0.08244683,108350.0,108340.0,1.61225302]
[1756537082307,0.10771695,108350.0,108340.0,1.61217302]
[1756537082504,0.32221993,108360.0,108340.0,1.61217302]
[1756537082706,0.02311,108350.0,108340.0,1.61217302]
[1756537083905,0.02311,108350.0,108340.0,0.76493302]
[1756537084102,0.07275609,108360.0,108350.0,0.03598]
[1756537084306,0.04005822,108360.0,108350.0,0.77684302]
[1756537085001,0.07458822,108360.0,108350.0,0.77684302]
[1756537085204,0.07558822,108360.0,108350.0,1.62404302]
[1756537085605,0.07658822,108360.0,108350.0,1.62404302]
[1756537086413,0.07658822,108360.0,108350.0,0.77684302]
[1756537086709,0.07658822,108360.0,108350.0,1.62400302]
[1756537087098,0.17658822,108360.0,108350.0,0.77684302]
[1756537087303,0.17658822,108360.0,108350.0,1.62400302]
[1756537088707,0.17658822,108360.0,108350.0,1.26849]
[1756537088913,0.17658822,108360.0,108350.0,1.62400302]
[1756537091317,0.14205822,108360.0,108350.0,1.62400302]
[1756537094620,0.16723443,108360.0,108350.0,1.62400302]
[1756537094822,0.06723443,108360.0,108350.0,1.62400302]
[1756537097222,0.11688052,108360.0,108350.0,1.62400302]
[1756537099326,0.47233204,108360.0,108350.0,1.62394152]
[1756537101535,0.47233204,108360.0,108350.0,1.26849]
[1756537101738,0.47233204,108360.0,108350.0,1.62394152]
[1756537102033,0.11688052,108360.0,108350.0,1.62394152]
[1756537102231,0.47233204,108360.0,108350.0,1.62394152]
[1756537102428,0.09377052,108360.0,108350.0,1.62394152]
[1756537104231,0.44922204,108360.0,108350.0,1.62394152]
[1756537107033,0.39948526,108360.0,108350.0,1.62394152]
[1756537107727,0.44913135,108360.0,108350.0,1.62394152]
[1756537107927,0.39948526,108360.0,108350.0,1.62394152]
[1756537108434,0.04403374,108360.0,108350.0,1.62394152]
[1756537108734,0.39948526,108360.0,108350.0,1.62394152]
[1756537109034,0.42259526,108360.0,108350.0,0.77678152]
[1756537109235,0.42259526,108360.0,108350.0,1.62354152]
[1756537109735,0.06714374,108360.0,108350.0,1.62354152]
[1756537109930,0.42259526,108360.0,108350.0,0.42133]
[1756537110133,0.46247374,108360.0,108350.0,0.41598152]
[1756537110333,1.32302287,108360.0,108350.0,0.06053]
[1756537110631,1.57302287,108360.0,108350.0,0.06053]
[1756537111137,2.41978287,108360.0,108350.0,0.06053]
[1756537111337,2.06442539,108360.0,108350.0,0.06053]
[1756537114833,2.06442539,108360.0,108350.0,0.02455]
[1756537115926,2.06442539,108360.0,108350.0,0.05912]
[1756537116931,2.06442539,108360.0,108350.0,0.02455]
[1756537118033,1.70887983,108360.0,108350.0,0.05912]
[1756537118235,2.06442539,108360.0,108350.0,0.05912]
[1756537121543,2.06436151,108360.0,108350.0,0.02455]
[1756537122633,2.06436151,108360.0,108340.0,0.03457]
[1756537122634,2.41990707,108360.0,108340.0,0.03457]
[1756537122838,0.41405556,108350.0,108340.0,0.05872]
[1756537123140,0.4390772,108350.0,108340.0,0.05872]
[1756537126443,0.43907271,108350.0,108340.0,0.05872]
[1756537131147,0.43907271,108350.0,108340.0,0.41952]
[1756537133448,0.43908046,108350.0,108340.0,0.77507331]
[1756537140164,0.02501715,108350.0,108340.0,1.73617993]
[1756537140364,0.02501715,108350.0,108340.0,1.38062662]
[1756537142160,0.02501715,108350.0,108340.0,0.66952]
[1756537142364,0.04727715,108350.0,108340.0,0.66952]
[1756537142564,0.04727715,108350.0,108340.0,1.38523662]
[1756537146172,0.04727715,108350.0,108340.0,0.67413]
[1756537146365,0.04727715,108350.0,108340.0,1.38523662]
[1756537147370,0.02501715,108350.0,108340.0,1.38523662]
[1756537151076,0.02501715,108350.0,108340.0,1.74078993]
[1756537152477,0.02501715,108350.0,108340.0,1.49078993]
[1756537154173,0.02501715,108350.0,108340.0,1.49178993]
[1756537154675,0.02501715,108350.0,108340.0,2.34062993]
[1756537154876,0.02501715,108350.0,108340.0,2.34162993]
[1756537156175,0.02501715,108350.0,108340.0,2.70242993]
[1756537158683,0.02501715,108350.0,108340.0,1.85358993]
[1756537158883,0.02501715,108350.0,108340.0,2.70222993]
[1756537159879,0.02501715,108350.0,108340.0,2.95222993]
[1756537160884,0.02501715,108350.0,108340.0,2.10358993]
[1756537161181,0.02501715,108350.0,108340.0,2.95174993]
[1756537161589,0.02501715,108350.0,108340.0,2.10358993]
[1756537161884,0.02501715,108350.0,108340.0,2.95150993]
[1756537162485,0.02501715,108350.0,108340.0,2.10358993]
[1756537162685,0.02501715,108350.0,108340.0,2.95150993]
[1756537163785,0.01694822,108360.0,108340.0,2.95150993]
[1756537163983,0.02226,108360.0,108350.0,1.13234662]
[1756537164184,0.04705809,108360.0,108350.0,1.15125999]
[1756537165489,0.04705809,108360.0,108350.0,1.15586999]
[1756537166788,0.08282809,108360.0,108350.0,0.44476337]
[1756537166982,0.04705809,108360.0,108350.0,1.15586999]
[1756537167296,0.07753903,108360.0,108350.0,1.15586999]
[1756537168687,0.05527903,108360.0,108350.0,1.15586999]
[1756537169595,0.05527903,108360.0,108350.0,2.00510999]
[1756537170998,0.05527903,108360.0,108350.0,1.15586999]
[1756537171292,0.05517824,108360.0,108350.0,2.00459547]
[1756537172792,0.02238,108370.0,108360.0,0.05756]
[1756537173085,0.09590593,108370.0,108360.0,1.1289521]
[1756537173283,0.05259324,108370.0,108360.0,1.1289521]
[1756537173685,0.03021324,108370.0,108360.0,1.1289521]
[1756537173885,0.02238,108380.0,108370.0,0.05756]
[1756537174098,0.02238,108380.0,108370.0,1.62241605]
[1756537174292,0.27238,108380.0,108370.0,1.62241605]
[1756537174692,0.30015,108380.0,108370.0,1.62241605]
[1756537175295,0.30515,108380.0,108370.0,1.62241605]
[1756537175892,0.30515,108380.0,108370.0,0.77365605]
[1756537176097,0.30515,108380.0,108370.0,1.62241605]
[1756537176396,0.30515,108380.0,108370.0,1.62341605]
[1756537176397,0.30215,108380.0,108370.0,1.62341605]
[1756537176596,0.37586841,108380.0,108370.0,1.62341605]
[1756537176897,0.40417332,108380.0,108370.0,1.62441605]
[1756537177701,0.40417332,108380.0,108370.0,1.26361605]
[1756537177998,0.40417332,108380.0,108370.0,1.98521605]
[1756537179907,0.40417332,108380.0,108370.0,1.98982605]
[1756537180403,0.10402332,108380.0,108370.0,1.98982605]
[1756537180605,0.02777,108400.0,108370.0,1.98982605]
[1756537180806,0.05015,108400.0,108390.0,0.77365605]
[1756537181005,0.05015,108400.0,108390.0,1.62173605]
[1756537181400,0.12533804,108400.0,108390.0,1.6407257]
[1756537181602,0.08130579,108400.0,108390.0,1.6407257]
[1756537181805,0.08130579,108400.0,108390.0,1.62173605]
[1756537182105,0.08230579,108400.0,108390.0,1.62173605]
[1756537182302,0.08230579,108400.0,108390.0,1.64072595]
[1756537183107,0.08230579,108400.0,108390.0,2.00152595]
[1756537183409,0.33230579,108400.0,108390.0,2.00152595]
[1756537183804,0.33230579,108400.0,108390.0,2.37584966]
[1756537184005,0.03215579,108400.0,108390.0,2.37584966]
[1756537184204,0.03315579,108400.0,108390.0,2.37584966]
[1756537184809,0.05771727,108400.0,108390.0,2.37584966]
[1756537186009,0.12971006,108400.0,108390.0,2.37584966]
[1756537186210,0.02656148,108400.0,108390.0,2.37584966]
[1756537189419,0.05784955,108400.0,108390.0,2.37584966]
[1756537190217,0.05784955,108400.0,108390.0,2.37484966]
[1756537190420,0.13153959,108400.0,108390.0,2.37484966]
[1756537191018,0.13153959,108400.0,108390.0,1.66425756]
[1756537191314,0.13153959,108400.0,108390.0,2.355822]
[1756537192918,0.13153959,108400.0,108390.0,1.508742]
[1756537193119,0.13153959,108400.0,108390.0,2.355582]
[1756537193417,0.09578959,108400.0,108390.0,2.605582]
[1756537193616,0.02777,108420.0,108390.0,2.571702]
[1756537193814,0.05015,108420.0,108410.0,0.77365605]
[1756537194314,0.07998919,108420.0,108410.0,0.77365605]
[1756537194818,0.15525928,108420.0,108410.0,0.77365605]
[1756537195117,0.15925928,108420.0,108410.0,1.62029605]
[1756537196518,0.16025928,108420.0,108410.0,1.62029605]
[1756537197221,0.16225928,108420.0,108410.0,1.62029605]
[1756537199824,0.16225928,108420.0,108410.0,0.77365605]
[1756537200024,0.16225928,108420.0,108410.0,1.61989605]
[1756537200524,0.13448928,108420.0,108410.0,1.61989605]
[1756537200721,0.11210928,108420.0,108410.0,1.61989605]
[1756537202123,0.11210928,108420.0,108410.0,2.2251921]
[1756537202322,0.11210928,108420.0,108410.0,2.5859921]
[1756537202525,0.11210928,108420.0,108410.0,2.23069605]
[1756537203025,0.11210928,108420.0,108410.0,2.23065605]